bitfinex/quotes_BTCUSD_20240718
["timestamp","ask_amount","ask_price","bid_price","bid_amount"]
[1721316075499,0.12096049,63683.0,63682.0,0.0804]
[1721316075500,0.59204249,63683.0,63682.0,0.0804]
[1721316076156,0.27798749,63683.0,63682.0,0.0804]
[1721316076684,0.0437857,63684.0,63682.0,0.0804]
[1721316076911,0.0437857,63697.0,63686.0,0.0651]
[1721316077130,0.0437857,63695.0,63687.0,0.54761574]
[1721316077355,0.0437857,63701.0,63692.0,0.157004]
[1721316077579,0.0437857,63701.0,63691.0,0.314015]
[1721316077580,0.0437857,63695.0,63693.0,0.15438174]
[1721316077805,0.0437857,63695.0,63687.0,0.0792]
[1721316077806,0.314002,63694.0,63687.0,0.0792]
[1721316078024,0.07717479,63696.0,63687.0,0.0792]
[1721316078025,0.0437857,63690.0,63687.0,0.23358174]
[1721316078243,0.0437857,63688.0,63687.0,0.23358174]
[1721316078694,0.0437857,63689.0,63687.0,0.23358174]
[1721316078936,0.0437857,63691.0,63687.0,0.23358174]
[1721316079173,0.157002,63694.0,63693.0,0.002]
[1721316079174,0.0437857,63694.0,63693.0,0.002]
[1721316079401,0.2007857,63694.0,63693.0,0.002]
[1721316079633,0.2007857,63694.0,63687.0,0.23358174]
[1721316079634,0.0437857,63694.0,63687.0,0.23358174]
[1721316079852,0.0437857,63695.0,63687.0,0.23358174]
[1721316080067,0.39117079,63696.0,63687.0,0.23358174]
[1721316080068,0.0437857,63694.0,63687.0,0.23358174]
[1721316080301,0.07717479,63689.0,63687.0,0.23358174]
[1721316080584,0.07717479,63689.0,63687.0,0.0792]
[1721316080585,0.0437857,63688.0,63687.0,0.0792]
[1721316080809,0.2008007,63688.0,63687.0,0.0792]
[1721316081035,0.0437857,63688.0,63687.0,0.0792]
[1721316081276,0.001,63688.0,63687.0,0.0892]
[1721316081524,0.001,63688.0,63687.0,0.24358174]
[1721316081767,0.0437857,63693.0,63687.0,0.23458174]
[1721316081996,0.27795749,63696.0,63687.0,0.23458174]
[1721316082231,0.001,63688.0,63687.0,1.186322]
[1721316082446,0.001,63688.0,63687.0,1.250222]
[1721316082673,0.46304871,63705.0,63698.0,0.141]
[1721316082926,0.07717479,63704.0,63698.0,0.141]
[1721316083414,0.0437857,63706.0,63699.0,0.15438174]
[1721316083657,0.07717479,63704.0,63699.0,0.15438174]
[1721316084150,0.0437857,63707.0,63699.0,0.15438174]
[1721316084423,0.0437857,63707.0,63699.0,0.31136974]
[1721316085189,0.313915,63712.0,63698.0,0.141]
[1721316085190,0.3577617,63699.0,63698.0,0.141]
[1721316085446,0.2007737,63699.0,63698.0,0.141]
[1721316085686,0.0437857,63699.0,63698.0,0.141]
[1721316085909,0.0437857,63701.0,63698.0,0.141]
[1721316086139,0.5147497,63699.0,63698.0,0.0771]
[1721316086395,0.39113079,63704.0,63698.0,0.0771]
[1721316086396,0.2007727,63700.0,63698.0,0.0771]
[1721316086621,0.39113079,63704.0,63698.0,0.0771]
[1721316086622,0.0437857,63703.0,63698.0,0.23148174]
[1721316087101,0.12096049,63704.0,63698.0,0.23148174]
[1721316087316,0.07717479,63704.0,63699.0,0.15438174]
[1721316087554,0.0437857,63707.0,63699.0,0.15438174]
[1721316087818,0.0437857,63707.0,63700.0,0.156984]
[1721316088113,0.07717479,63704.0,63701.0,0.15438174]
[1721316088321,0.0437857,63708.0,63702.0,0.22218]
[1721316088543,0.0437857,63708.0,63703.0,0.15438174]
[1721316089022,0.3576777,63717.0,63704.0,0.233775]
[1721316089254,0.3576777,63717.0,63705.0,0.15438174]
[1721316089255,0.12096049,63711.0,63705.0,0.15438174]
[1721316089473,0.0437857,63706.0,63705.0,0.15438174]
[1721316089958,0.001,63707.0,63699.0,0.013]
[1721316089959,0.2007707,63700.0,63699.0,0.013]
[1721316090175,0.90588749,63700.0,63699.0,0.013]
[1721316090860,1.53382949,63700.0,63699.0,0.013]
[1721316091106,1.21985849,63700.0,63699.0,0.013]
[1721316091321,1.21985849,63700.0,63699.0,0.006]
[1721316091541,0.90588749,63700.0,63699.0,0.006]
[1721316091980,0.59191649,63700.0,63699.0,0.006]
[1721316092202,0.0437857,63697.0,63691.0,0.0773]
[1721316092668,0.0437857,63694.0,63691.0,0.0773]
[1721316092885,0.0437857,63700.0,63693.0,0.157002]
[1721316093128,0.07717479,63718.0,63691.0,0.0773]
[1721316093129,0.0437857,63692.0,63691.0,0.0773]
[1721316093341,0.09725126,63699.0,63685.0,0.0601]
[1721316093342,0.0437857,63686.0,63685.0,0.0601]
[1721316094023,0.0437857,63686.0,63680.0,0.0626]
[1721316094266,0.07717479,63692.0,63680.0,0.0626]
[1721316094267,0.0437857,63681.0,63680.0,0.0626]
[1721316094528,0.0437857,63681.0,63668.0,0.314126]
[1721316094529,0.0437857,63672.0,63671.0,0.142]
[1721316094752,0.27801449,63672.0,63671.0,0.142]
[1721316095231,0.314171,63660.0,63647.0,0.09627235]
[1721316095473,0.0437857,63652.0,63648.0,0.002794]
[1721316095688,0.07717479,63657.0,63647.0,0.0799]
[1721316095689,0.2008997,63648.0,63647.0,0.0799]
[1721316095916,0.5151277,63648.0,63647.0,0.0799]
[1721316096137,0.0437857,63644.0,63640.0,0.1357]
[1721316096375,0.0437857,63643.0,63641.0,0.15438174]
[1721316096591,0.05,63676.0,63640.0,0.1357]
[1721316096592,0.0437857,63641.0,63640.0,0.0751]
[1721316096837,0.0649,63654.0,63635.0,0.0606]
[1721316096838,0.3580627,63638.0,63635.0,0.0606]
[1721316097068,0.5152007,63638.0,63633.0,0.0751]
[1721316097308,0.5152007,63638.0,63637.0,0.00085464]
[1721316097527,0.8294777,63638.0,63637.0,0.00085464]
[1721316098201,0.51421532,63653.0,63637.0,0.00085464]
[1721316098202,0.0437857,63644.0,63637.0,0.00085464]
[1721316098432,0.0437857,63644.0,63637.0,0.15523638]
[1721316098660,0.0437857,63644.0,63639.0,0.081]
[1721316098898,0.8294527,63640.0,63639.0,0.081]
[1721316099126,0.2009187,63640.0,63639.0,0.081]
[1721316099384,0.07717479,63648.0,63639.0,0.081]
[1721316099385,0.0437857,63648.0,63640.0,6.895e-05]
[1721316099659,0.157119,63646.0,63641.0,0.15438174]
[1721316099891,0.0437857,63648.0,63642.0,0.0623]
[1721316100114,0.0437857,63656.0,63643.0,0.15438174]
[1721316100338,0.0437857,63658.0,63643.0,0.15752397]
[1721316100585,0.0437857,63658.0,63644.0,0.08565746]
[1721316100801,0.0437857,63658.0,63645.0,0.15752362]
[1721316101051,0.0437857,63658.0,63648.0,0.157114]
[1721316101263,0.0437857,63658.0,63649.0,0.15717574]
[1721316101490,0.157087,63659.0,63649.0,0.15717574]
[1721316101491,0.0437857,63656.0,63649.0,0.15717574]
[1721316101718,0.0437857,63659.0,63650.0,0.1409]
[1721316101976,0.0437857,63656.0,63651.0,0.15717574]
[1721316102232,0.0437857,63654.0,63651.0,0.15717574]
[1721316102455,0.0437857,63654.0,63651.0,0.15438174]
[1721316102678,0.0437857,63654.0,63650.0,0.1409]
[1721316102679,0.0437857,63651.0,63650.0,0.1409]
[1721316102955,0.0437857,63646.0,63644.0,0.1447]
[1721316103217,0.27808149,63645.0,63644.0,0.0812]
[1721316103427,0.0437857,63645.0,63644.0,0.23558174]
[1721316103656,0.0437857,63650.0,63644.0,0.23558174]
[1721316103886,0.0437857,63650.0,63645.0,0.15717574]
[1721316104162,0.5151427,63646.0,63645.0,0.002794]
[1721316104379,0.2009167,63641.0,63640.0,6.895e-05]
[1721316105506,0.5151787,63641.0,63640.0,6.895e-05]
[1721316105970,0.5151787,63641.0,63640.0,0.01406895]
[1721316106205,0.8294407,63641.0,63640.0,0.01406895]
[1721316106452,1.25807087,63641.0,63640.0,0.01406895]
[1721316107132,1.1437027,63641.0,63640.0,0.01406895]
[1721316107373,1.61234644,63641.0,63640.0,0.01406895]
[1721316108076,1.61234644,63641.0,63640.0,0.02406895]
[1721316108577,1.63534644,63641.0,63640.0,0.02406895]
[1721316108805,1.63534644,63641.0,63640.0,0.024]
[1721316109037,1.78969601,63641.0,63640.0,0.024]
[1721316109279,1.63534644,63641.0,63640.0,0.024]
[1721316109495,1.63534644,63641.0,63640.0,0.014]
[1721316110392,1.63534644,63641.0,63637.0,0.00085464]
[1721316110393,1.1437547,63638.0,63637.0,0.00085464]
[1721316110616,1.39831123,63638.0,63637.0,0.00085464]
[1721316111151,1.22092949,63638.0,63637.0,0.00085464]
[1721316112051,1.71258823,63638.0,63637.0,0.00085464]
[1721316112504,2.02686523,63638.0,63637.0,0.00085464]
[1721316112729,1.81258823,63638.0,63637.0,0.00085464]
[1721316112953,1.81258823,63638.0,63637.0,0.01085464]
[1721316114410,1.78958823,63638.0,63637.0,0.01085464]
[1721316114646,1.9439378,63638.0,63637.0,0.02085464]
[1721316115603,2.1094378,63638.0,63637.0,0.02085464]
[1721316116315,0.66958244,63638.0,63637.0,0.02085464]
[1721316116574,1.29813644,63638.0,63637.0,0.02085464]
[1721316116786,1.61241344,63638.0,63637.0,0.02085464]
[1721316117262,1.69151344,63638.0,63637.0,0.02085464]
[1721316117513,1.69151344,63638.0,63637.0,0.00085464]
[1721316117751,1.97486301,63638.0,63637.0,0.00285464]
[1721316117988,1.82051344,63638.0,63637.0,0.00285464]
[1721316118239,1.81551344,63638.0,63637.0,0.00185464]
[1721316118480,1.87591344,63638.0,63637.0,0.00185464]
[1721316118722,1.88091344,63638.0,63637.0,0.00285464]
[1721316118980,1.88291344,63638.0,63637.0,0.00385464]
[1721316119218,1.56048601,63638.0,63637.0,0.00385464]
[1721316119482,1.56048601,63638.0,63637.0,0.00285464]
[1721316119483,1.55548601,63638.0,63637.0,0.00285464]
[1721316119934,1.40110427,63638.0,63637.0,0.00285464]
[1721316120162,0.003,63638.0,63637.0,0.00285464]
[1721316120382,0.003,63638.0,63629.0,0.07305464]
[1721316120658,0.003,63638.0,63630.0,0.15717574]
[1721316120893,0.0437857,63637.0,63631.0,0.0602]
[1721316121110,0.003,63638.0,63631.0,0.0602]
[1721316121111,0.2009387,63632.0,63631.0,0.0602]
[1721316121412,0.0437857,63637.0,63631.0,0.21458174]
[1721316121633,0.0437857,63637.0,63632.0,0.15717574]
[1721316121874,0.0437857,63635.0,63632.0,0.15717574]
[1721316122347,0.0437857,63633.0,63632.0,0.15717574]
[1721316122576,0.0437857,63632.0,63631.0,0.0602]
[1721316122809,0.471475,63630.0,63629.0,0.07305464]
[1721316123044,0.5152607,63630.0,63629.0,0.07305464]
[1721316123310,0.0437857,63630.0,63629.0,0.07305464]
[1721316123538,0.2009327,63635.0,63629.0,0.07305464]
[1721316123773,0.157143,63636.0,63632.0,0.004]
[1721316124017,0.5152387,63633.0,63632.0,0.004]
[1721316124539,0.0437857,63634.0,63632.0,0.013]
[1721316124786,0.0437857,63634.0,63632.0,0.008]
[1721316124787,0.0437857,63633.0,63632.0,0.008]
[1721316125006,0.314278,63638.0,63629.0,0.07305464]
[1721316125007,0.0437857,63630.0,63629.0,0.07305464]
[1721316125710,0.2009437,63630.0,63629.0,0.07305464]
[1721316125980,0.8295777,63630.0,63629.0,0.07305464]
[1721316126194,0.5153047,63624.0,63623.0,0.0822]
[1721316126479,0.8296507,63624.0,63623.0,0.0822]
[1721316126971,0.0437857,63627.0,63620.0,0.0616]
[1721316127195,0.0437857,63629.0,63621.0,0.23937574]
[1721316127677,0.0437857,63629.0,63621.0,0.39655574]
[1721316127960,0.0437857,63631.0,63623.0,0.157175]
[1721316128175,0.00083,63632.0,63624.0,0.30257574]
[1721316128421,0.0437857,63631.0,63624.0,0.30257574]
[1721316128688,0.00083,63632.0,63624.0,0.30257574]
[1721316128898,0.00083,63632.0,63624.0,0.29978174]
[1721316129114,0.00083,63632.0,63625.0,0.002794]
[1721316129348,0.157163,63628.0,63626.0,0.15438174]
[1721316129579,0.0437857,63627.0,63626.0,0.15438174]
[1721316129808,0.0437857,63627.0,63624.0,0.1454]
[1721316129809,0.157168,63626.0,63624.0,0.1454]
[1721316130052,0.628682,63625.0,63624.0,0.1454]
[1721316130314,0.5152967,63625.0,63624.0,0.1454]
[1721316130536,0.2009587,63624.0,63623.0,0.006]
[1721316130766,0.315138,63632.0,63623.0,0.006]
[1721316130767,0.157169,63626.0,63623.0,0.006]
[1721316130959,0.157172,63625.0,63623.0,0.006]
[1721316131187,0.157173,63624.0,63623.0,0.006]
[1721316131309,0.0437857,63621.0,63618.0,0.1489]
[1721316131544,0.0437857,63620.0,63619.0,0.15438174]
[1721316131761,0.0437857,63623.0,63619.0,0.15438174]
[1721316131990,0.0437857,63620.0,63619.0,0.15438174]
[1721316132267,0.001,63625.0,63619.0,0.15438174]
[1721316132493,0.001,63625.0,63623.0,0.013]
[1721316132716,0.001,63625.0,63624.0,0.63183692]
[1721316132916,0.001,63625.0,63624.0,1.39059274]
[1721316133333,0.00083,63632.0,63631.0,0.157156]
[1721316133539,0.3579797,63655.0,63642.0,0.157128]
[1721316133757,0.3579797,63655.0,63640.0,0.1393]
[1721316133758,0.46304871,63645.0,63643.0,0.15438174]
[1721316133953,0.0437857,63651.0,63643.0,0.15438174]
[1721316134239,0.07717479,63661.0,63644.0,0.00314222]
[1721316134459,0.46304871,63660.0,63645.0,0.29208174]
[1721316134684,0.0437857,63666.0,63656.0,0.1447]
[1721316134886,0.0437857,63663.0,63657.0,0.15438174]
[1721316135101,0.2008637,63663.0,63657.0,0.15438174]
[1721316135342,0.157078,63663.0,63657.0,0.15438174]
[1721316135550,0.2008637,63663.0,63657.0,0.15438174]
[1721316135764,0.0437857,63657.0,63656.0,0.1447]
[1721316135969,0.0437857,63652.0,63649.0,0.1447]
[1721316136191,0.07717479,63657.0,63649.0,0.1447]
[1721316136192,0.0437857,63651.0,63649.0,0.1447]
[1721316136341,0.07717479,63657.0,63649.0,0.1447]
[1721316136342,0.27806949,63650.0,63649.0,0.1447]
[1721316136906,0.07717479,63650.0,63649.0,0.1447]
[1721316137131,0.314198,63655.0,63649.0,0.1447]
[1721316137356,0.0437857,63660.0,63650.0,0.15438174]
[1721316137590,0.157085,63660.0,63650.0,0.31149074]
[1721316137812,0.0437857,63662.0,63650.0,0.46859574]
[1721316138034,0.1,63663.0,63651.0,0.314211]
[1721316138257,0.15708,63662.0,63652.0,0.15438174]
[1721316138492,0.157077,63663.0,63652.0,0.15438174]
[1721316138726,0.157073,63665.0,63653.0,0.1571]
[1721316138963,0.07717479,63664.0,63655.0,0.157096]
[1721316139183,0.314133,63668.0,63656.0,0.30598174]
[1721316139184,0.0437857,63668.0,63656.0,0.30598174]
[1721316139398,0.07717479,63665.0,63656.0,0.30598174]
[1721316139617,0.157057,63671.0,63657.0,0.00314136]
[1721316139845,0.157057,63671.0,63658.0,0.15438174]
[1721316140087,0.27801649,63672.0,63658.0,0.15438174]
[1721316140316,0.07717479,63665.0,63658.0,0.15438174]
[1721316140535,0.07717479,63665.0,63659.0,0.157085]
[1721316140766,0.07717479,63665.0,63660.0,0.15438174]
[1721316140994,0.12096049,63672.0,63660.0,0.15438174]
[1721316141223,0.07717479,63682.0,63663.0,0.23738174]
[1721316141465,0.46304871,63677.0,63669.0,0.314124]
[1721316141979,0.12096049,63682.0,63665.0,0.1448]
[1721316141980,0.0437857,63672.0,63670.0,0.15438174]
[1721316141982,0.5149637,63670.0,63669.0,0.15438174]
[1721316142223,0.0437857,63670.0,63669.0,0.15438174]
[1721316142465,0.07717479,63675.0,63669.0,0.15438174]
[1721316142690,0.07717479,63674.0,63670.0,0.15438174]
[1721316143145,0.07717479,63682.0,63670.0,0.15438174]
[1721316143371,0.23420579,63682.0,63671.0,0.157055]
[1721316143601,0.2008207,63680.0,63672.0,0.15438174]
[1721316143832,0.157035,63680.0,63672.0,0.15438174]
[1721316144314,0.07717479,63682.0,63672.0,0.15438174]
[1721316144545,0.07717479,63682.0,63673.0,0.0031407]
[1721316144772,0.12096049,63682.0,63674.0,0.30108174]
[1721316145027,0.07717479,63675.0,63674.0,0.30108174]
[1721316145253,0.12096049,63675.0,63674.0,0.30108174]
[1721316145513,0.8290577,63672.0,63671.0,0.002]
[1721316146030,1.1431667,63672.0,63671.0,0.002]
[1721316146523,1.2431667,63672.0,63671.0,0.002]
[1721316146775,1.2431667,63672.0,63654.0,0.0647]
[1721316146776,0.0437857,63660.0,63654.0,0.0647]
[1721316147016,0.0437857,63656.0,63654.0,0.0647]
[1721316147257,0.157092,63657.0,63654.0,0.0647]
[1721316147493,0.0437857,63656.0,63654.0,0.0647]
[1721316147982,0.157092,63657.0,63654.0,0.0647]
[1721316147983,0.314184,63657.0,63654.0,0.0647]
[1721316148231,0.07717479,63659.0,63644.0,0.1395]
[1721316148232,0.2008997,63648.0,63644.0,0.1395]
[1721316148456,0.2008997,63648.0,63644.0,0.0773]
[1721316148457,0.0437857,63645.0,63644.0,0.0773]
[1721316148686,0.0437857,63642.0,63641.0,0.0622]
[1721316148914,0.314248,63644.0,63637.0,0.0773]
[1721316148915,0.0437857,63638.0,63637.0,0.0773]
[1721316149178,0.157128,63643.0,63637.0,0.23168174]
[1721316149466,0.0437857,63651.0,63638.0,0.15438174]
[1721316149697,0.50683441,63658.0,63643.0,0.15438174]
[1721316149930,0.50683441,63658.0,63649.0,0.15711]
[1721316150152,0.314161,63662.0,63651.0,0.31421]
[1721316150153,0.0437857,63662.0,63651.0,0.31421]
[1721316150374,0.0437857,63662.0,63654.0,0.0816]
[1721316150607,0.0437857,63662.0,63655.0,0.15438174]
[1721316150844,0.3579047,63671.0,63656.0,0.31732853]
[1721316151069,0.0437857,63666.0,63658.0,0.157088]
[1721316151317,0.0437857,63663.0,63659.0,0.15438174]
[1721316151556,0.07717479,63668.0,63654.0,0.0786]
[1721316151557,0.2008757,63658.0,63654.0,0.0786]
[1721316151778,0.0437857,63655.0,63654.0,0.0786]
[1721316152009,0.2008817,63655.0,63654.0,0.23298174]
[1721316152241,0.5150747,63655.0,63654.0,0.23298174]
[1721316152505,0.0437857,63649.0,63648.0,0.1423]
[1721316152732,0.0437857,63649.0,63641.0,0.083]
[1721316152733,0.0437857,63644.0,63641.0,0.083]
[1721316152971,0.3580157,63648.0,63642.0,0.15438174]
[1721316153198,0.0437857,63642.0,63641.0,0.083]
[1721316153442,0.157146,63635.0,63634.0,0.1432]
[1721316153669,0.0437857,63635.0,63634.0,0.29758174]
[1721316153889,0.0437857,63635.0,63634.0,0.083]
[1721316154118,0.0437857,63635.0,63620.0,0.314366]
[1721316154119,0.157175,63623.0,63621.0,0.083]
[1721316154350,0.0437857,63622.0,63621.0,0.23738174]
[1721316154612,0.2009637,63622.0,63621.0,0.083]
[1721316154852,0.0437857,63618.0,63614.0,0.0775]
[1721316155078,0.0437857,63620.0,63615.0,0.15438174]
[1721316155301,0.157183,63621.0,63615.0,0.15438174]
[1721316155560,0.157183,63620.0,63616.0,0.00704233]
[1721316155804,0.157182,63621.0,63616.0,0.16142407]
[1721316156050,0.2009687,63620.0,63616.0,0.15438174]
[1721316156291,0.2009687,63620.0,63617.0,0.00703556]
[1721316156292,0.5153497,63618.0,63617.0,0.00703556]
[1721316156517,0.0437857,63618.0,63617.0,0.00703556]
[1721316156737,0.0437857,63615.0,63613.0,0.009196]
[1721316156969,0.0437857,63614.0,63613.0,0.009196]
[1721316157244,0.3581717,63616.0,63613.0,0.009196]
[1721316157489,0.3581717,63616.0,63613.0,0.01625862]
[1721316157490,0.0437857,63616.0,63613.0,0.01625862]
[1721316157714,0.0437857,63619.0,63614.0,0.15438174]
[1721316157940,0.001,63620.0,63614.0,0.15438174]
[1721316158201,0.001,63620.0,63616.0,0.011]
[1721316158418,0.001,63620.0,63617.0,0.15717574]
[1721316158659,0.001,63620.0,63617.0,0.1614173]
[1721316158916,0.0447857,63620.0,63617.0,0.1614173]
[1721316159142,0.0437857,63618.0,63617.0,0.00703556]
[1721316159367,0.001,63620.0,63616.0,0.011]
[1721316159368,0.0437857,63619.0,63616.0,0.011]
[1721316159850,0.0437857,63619.0,63613.0,0.009196]
[1721316160070,0.001,63615.0,63614.0,0.15438174]
[1721316160303,0.001,63616.0,63614.0,0.15438174]
[1721316160543,0.157183,63620.0,63614.0,0.15438174]
[1721316160544,0.0437857,63617.0,63616.0,0.013]
[1721316161048,0.35928783,63617.0,63616.0,0.012]
[1721316161270,1.46113083,63617.0,63616.0,0.012]
[1721316161489,1.1441717,63614.0,63613.0,0.009196]
[1721316161715,1.61294944,63614.0,63613.0,0.022196]
[1721316161947,1.76729901,63614.0,63613.0,0.022196]
[1721316162175,1.71294944,63614.0,63613.0,0.022196]
[1721316162392,1.2441717,63614.0,63613.0,0.022196]
[1721316163774,1.2441717,63614.0,63613.0,0.033196]
[1721316164249,0.9297757,63614.0,63613.0,0.033196]
[1721316164503,0.0437857,63614.0,63613.0,0.022196]
[1721316164726,0.07817479,63619.0,63613.0,0.022196]
[1721316164727,0.001,63619.0,63613.0,0.17657774]
[1721316164946,0.001,63619.0,63614.0,0.31157874]
[1721316165414,0.001,63619.0,63613.0,0.023196]
[1721316165660,0.001,63619.0,63615.0,0.15438174]
[1721316165910,0.001,63619.0,63616.0,0.157192]
[1721316166188,0.001,63619.0,63616.0,0.15438174]
[1721316166681,0.001,63619.0,63616.0,0.16838174]
[1721316166946,0.0437857,63628.0,63617.0,0.15752534]
[1721316167218,0.0437857,63627.0,63617.0,0.15438174]
[1721316167435,0.0437857,63628.0,63621.0,0.157179]
[1721316167666,0.0437857,63624.0,63621.0,0.15438174]
[1721316167922,0.0437857,63622.0,63616.0,0.027]
[1721316168149,0.27812749,63627.0,63617.0,0.31157074]
[1721316168374,0.001,63619.0,63617.0,0.31357074]
[1721316168636,0.001,63619.0,63618.0,0.157188]
[1721316168861,0.001,63619.0,63618.0,0.62594574]
[1721316169339,0.001,63619.0,63618.0,0.15438174]
[1721316169595,0.2009507,63628.0,63618.0,0.31156974]
[1721316169862,0.0437857,63628.0,63619.0,0.46874874]
[1721316170104,0.0437857,63628.0,63621.0,0.006]
[1721316170313,0.07717479,63627.0,63622.0,0.15438174]
[1721316170541,0.07717479,63627.0,63622.0,0.15966485]
[1721316171020,0.19171026,63661.0,63624.0,0.0615]
[1721316171021,0.0437857,63638.0,63624.0,0.0615]
[1721316171265,0.0437857,63637.0,63628.0,0.157163]
[1721316171484,0.15714,63638.0,63628.0,0.157163]
[1721316171485,0.07717479,63635.0,63629.0,0.15438174]
[1721316171733,0.07717479,63635.0,63629.0,0.31853855]
[1721316171964,0.0437857,63638.0,63632.0,0.157152]
[1721316172209,0.23430379,63642.0,63629.0,0.00699681]
[1721316172210,0.0437857,63630.0,63629.0,0.00699681]
[1721316172551,0.0437857,63630.0,63621.0,0.164179]
[1721316172552,0.2009437,63630.0,63621.0,0.164179]
[1721316172870,0.0437857,63624.0,63621.0,0.007]
[1721316173304,0.0437857,63626.0,63622.0,0.15438174]
[1721316173543,0.07717479,63627.0,63622.0,0.15638174]
[1721316173783,0.0437857,63630.0,63622.0,0.15638174]
[1721316174009,0.0437857,63630.0,63622.0,0.15438174]
[1721316174487,0.0437857,63625.0,63622.0,0.15438174]
[1721316174712,0.314309,63632.0,63622.0,0.15438174]
[1721316174713,0.0437857,63630.0,63622.0,0.15438174]
[1721316174966,0.314309,63632.0,63622.0,0.15438174]
[1721316174967,0.0437857,63628.0,63622.0,0.15438174]
[1721316175213,0.0437857,63632.0,63622.0,0.15438174]
[1721316175442,0.314279,63638.0,63622.0,0.15438174]
[1721316175443,0.07717479,63631.0,63626.0,0.157167]
[1721316175692,0.0437857,63622.0,63621.0,0.013]
[1721316175932,0.12096049,63624.0,63621.0,0.007]
[1721316176173,0.0437857,63622.0,63621.0,0.007]
[1721316176912,0.0437857,63623.0,63615.0,0.157195]
[1721316177150,0.0437857,63622.0,63621.0,0.015]
[1721316177377,0.2009637,63622.0,63621.0,0.015]
[1721316177636,0.0437857,63622.0,63621.0,0.015]
[1721316177863,0.0447857,63622.0,63621.0,0.016]
[1721316178538,0.001,63622.0,63621.0,0.016]
[1721316179063,0.001,63622.0,63621.0,0.02127619]
[1721316179562,0.001,63622.0,63621.0,0.31605793]
[1721316179815,0.001,63622.0,63621.0,0.16167619]
[1721316180057,0.0447857,63622.0,63621.0,0.02127619]
[1721316180299,0.001,63622.0,63621.0,0.18365793]
[1721316180521,0.001,63622.0,63621.0,0.17838174]
[1721316180738,0.001,63622.0,63621.0,0.18385369]
[1721316180996,0.3591417,63622.0,63621.0,0.02947195]
[1721316181212,0.2019637,63622.0,63621.0,0.02947195]
[1721316181453,0.8306757,63622.0,63621.0,0.024]
[1721316181680,0.8943757,63622.0,63621.0,0.024]
[1721316183260,0.158178,63622.0,63621.0,0.024]
[1721316183770,0.001,63622.0,63621.0,0.024]
[1721316184284,0.001,63622.0,63621.0,0.02947787]
[1721316185462,0.0447857,63622.0,63621.0,0.02947787]
[1721316185698,0.001,63622.0,63621.0,0.024]
[1721316185936,0.001,63622.0,63621.0,0.02947617]
[1721316186686,0.001,63622.0,63621.0,0.024]
[1721316186913,0.0447857,63622.0,63621.0,0.02947617]
[1721316187581,0.0447857,63622.0,63621.0,0.024]
[1721316188300,0.2019637,63622.0,63621.0,0.024]
[1721316188786,0.8306757,63622.0,63621.0,0.024]
[1721316189014,1.71670968,63622.0,63621.0,0.024]
[1721316189251,1.87627185,63622.0,63621.0,0.024]
[1721316189703,1.78787045,63622.0,63621.0,0.016]
[1721316189951,1.87626743,63622.0,63621.0,0.016]
[1721316190195,1.87626743,63622.0,63621.0,0.017]
[1721316190429,0.60371668,63622.0,63621.0,0.001]
[1721316190652,0.2009657,63622.0,63614.0,0.1399]
[1721316190897,0.0437857,63624.0,63615.0,0.31157574]
[1721316191155,0.0437857,63622.0,63614.0,0.1399]
[1721316191378,0.0437857,63618.0,63614.0,0.1399]
[1721316191600,0.157194,63616.0,63614.0,0.078324]
[1721316192031,0.157187,63619.0,63614.0,0.078324]
[1721316192035,0.00784,63622.0,63615.0,0.31157474]
[1721316192036,0.0516257,63622.0,63615.0,0.31157474]
[1721316192259,0.00784,63622.0,63617.0,0.157189]
[1721316192475,0.00784,63622.0,63618.0,0.15438174]
[1721316192757,0.00984,63622.0,63621.0,0.001]
[1721316192989,0.00984,63622.0,63621.0,0.69246586]
[1721316193220,0.00984,63622.0,63621.0,0.21778174]
[1721316193915,0.00084,63622.0,63621.0,0.21678174]
[1721316194138,0.00184,63622.0,63621.0,0.21678174]
[1721316194643,0.00084,63622.0,63621.0,0.21678174]
[1721316195111,0.00084,63622.0,63621.0,0.16538174]
[1721316195112,0.0456257,63622.0,63621.0,0.16538174]
[1721316195355,0.0456257,63622.0,63621.0,0.011]
[1721316195356,1.2378698,63622.0,63621.0,0.011]
[1721316195605,1.48832187,63622.0,63621.0,0.011]
[1721316195856,1.80266479,63622.0,63621.0,0.011]
[1721316196078,1.33392705,63622.0,63621.0,0.02]
[1721316197014,1.33492705,63622.0,63621.0,0.02]
[1721316197243,1.02057105,63622.0,63621.0,0.011]
[1721316197499,1.33592705,63622.0,63621.0,0.012]
[1721316197724,1.45589111,63622.0,63621.0,0.001]
[1721316197952,1.33492705,63622.0,63621.0,0.001]
[1721316198214,1.02057105,63622.0,63621.0,0.001]
[1721316198403,0.29185905,63622.0,63621.0,0.001]
[1721316198629,0.29363134,63622.0,63621.0,0.001]
[1721316199324,0.00284,63622.0,63621.0,0.001]
[1721316199740,0.00084,63622.0,63617.0,0.218689]
[1721316199744,0.00084,63622.0,63620.0,0.00314338]
[1721316199900,0.0437857,63621.0,63620.0,0.15438174]
[1721316200114,0.00284,63622.0,63620.0,0.15438174]
[1721316200313,0.00284,63622.0,63617.0,0.0615]
[1721316200678,0.00284,63622.0,63619.0,0.0783]
[1721316201005,0.0437857,63620.0,63619.0,0.0783]
[1721316201893,0.2018037,63622.0,63619.0,0.0783]
[1721316202095,0.00084,63622.0,63619.0,0.0783]
[1721316202323,0.0437857,63620.0,63619.0,0.0783]
[1721316202960,0.0437857,63620.0,63614.0,0.000924]
[1721316202961,0.0437857,63619.0,63614.0,0.000924]
[1721316203164,0.2058037,63622.0,63615.0,0.15438174]
[1721316203814,0.0437857,63621.0,63619.0,0.009]
[1721316204034,0.001,63620.0,63619.0,0.034]
[1721316204243,0.001,63620.0,63619.0,0.18838174]
[1721316204474,0.001,63620.0,63619.0,0.65993774]
[1721316204770,0.001,63620.0,63619.0,0.32456674]
[1721316205212,0.001,63620.0,63619.0,0.78503774]
[1721316205419,0.001,63620.0,63619.0,1.09940874]
[1721316206735,0.001,63620.0,63619.0,0.83176027]
[1721316206941,0.001,63620.0,63619.0,0.47066674]
[1721316207149,0.001,63620.0,63619.0,1.09940874]
[1721316207675,0.001,63620.0,63619.0,1.42577974]
[1721316208120,0.001,63620.0,63619.0,1.41377974]
[1721316208593,0.00084,63622.0,63621.0,1.100263]